[Event "December 5 Early 2023"]
[Site "https://www.chess.com"]
[Date "2023.12.05"]
[Round "11"]
[White "Marchesich, Giovanni"]
[Black "Osmonbekov, Talaibek"]
[Result "1-0"]
[Board "119"]
[TimeControl "180+1"]
[WhiteFideId "2824790"]
[BlackFideId "2017253"]
[WhiteElo "2401"]
[BlackElo "2220"]
[WhiteTeam "ITA"]
[BlackTeam "USA"]
[WhiteClock "0:01:40"]
[BlackClock "0:00:00"]

1. e4 {[%clk 0:03:00]}  c5 {[%clk 0:02:58]} 2. Nf3 {[%clk 0:03:00]}  d6 {[%clk 0:02:58]} 3. d4 {[%clk 0:03:01]}  cxd4 {[%clk 0:02:59]} 4. Nxd4 {[%clk 0:03:01]}  Nf6 {[%clk 0:02:59]} 5. Nc3 {[%clk 0:03:02]}  g6 {[%clk 0:03:00]} 6. g3 {[%clk 0:02:53]}  Nc6 {[%clk 0:02:57]} 7. Nde2 {[%clk 0:02:51]}  Bg4 {[%clk 0:02:37]} 8. Bg2 {[%clk 0:02:48]}  Ne5 {[%clk 0:02:33]} 9. f4 {[%clk 0:02:39]}  Nc4 {[%clk 0:02:08]} 10. h3 {[%clk 0:02:34]}  Bd7 {[%clk 0:02:01]} 11. b3 {[%clk 0:02:33]}  Na5 {[%clk 0:01:51]} 12. O-O {[%clk 0:02:32]}  Bg7 {[%clk 0:01:46]} 13. Bb2 {[%clk 0:02:31]}  O-O {[%clk 0:01:36]} 14. Kh2 {[%clk 0:02:31]}  Rc8 {[%clk 0:01:26]} 15. Nd5 {[%clk 0:02:22]}  Nxd5 {[%clk 0:01:20]} 16. Bxg7 {[%clk 0:02:21]}  Ne3 {[%clk 0:01:20]} 17. Qd4 {[%clk 0:02:13]}  Nxf1+ {[%clk 0:01:13]} 18. Bxf1 {[%clk 0:02:12]}  e5 {[%clk 0:00:44]} 19. fxe5 {[%clk 0:02:05]}  Kxg7 {[%clk 0:00:17]} 20. e6+ {[%clk 0:02:05]}  Qf6 {[%clk 0:00:16]} 21. exd7 {[%clk 0:02:05]}  Rxc2 {[%clk 0:00:11]} 22. Rd1 {[%clk 0:01:58]}  Nc6 {[%clk 0:00:06]} 23. Qxf6+ {[%clk 0:01:48]}  Kxf6 {[%clk 0:00:06]} 24. Rxd6+ {[%clk 0:01:49]}  Ke7 {[%clk 0:00:07]} 25. Rd3 {[%clk 0:01:48]}  Rd8 {[%clk 0:00:07]} 26. Kg1 {[%clk 0:01:44]}  Rxd7 {[%clk 0:00:07]} 27. Re3 {[%clk 0:01:44]}  Rd1 {[%clk 0:00:06]} 28. Nf4 {[%clk 0:01:44]}  Rxa2 {[%clk 0:00:05]} 29. Nd5+ {[%clk 0:01:44]}  Kd8 {[%clk 0:00:05]} 30. Rf3 {[%clk 0:01:44]}  Ne5 {[%clk 0:00:05]} 31. Rf6 {[%clk 0:01:43]}  Raa1 {[%clk 0:00:05]} 32. Ne3 {[%clk 0:01:42]}  Re1 {[%clk 0:00:04]} 33. Kf2 {[%clk 0:01:41]}  Ke7 {[%clk 0:00:00]} 34. Nd5+ {[%clk 0:01:40]} 1-0

[Event "December 5 Early 2023"]
[Site "https://www.chess.com"]
[Date "2023.12.05"]
[Round "11"]
[White "Martin, Lewis"]
[Black "Latorre, Vincent"]
[Result "0-1"]
[Board "121"]
[TimeControl "180+1"]
[WhiteFideId "410551"]
[BlackFideId "2636891"]
[WhiteElo "2274"]
[BlackElo "2418"]
[WhiteTeam "ENG"]
[BlackTeam "CAN"]
[WhiteClock "0:00:16"]
[BlackClock "0:00:02"]

1. c4 {[%clk 0:03:00]}  Nf6 {[%clk 0:02:59]} 2. g3 {[%clk 0:03:00]}  g6 {[%clk 0:02:58]} 3. Bg2 {[%clk 0:03:00]}  Bg7 {[%clk 0:02:58]} 4. Nc3 {[%clk 0:02:58]}  O-O {[%clk 0:02:57]} 5. e4 {[%clk 0:02:58]}  d6 {[%clk 0:02:57]} 6. Nge2 {[%clk 0:02:58]}  e5 {[%clk 0:02:55]} 7. O-O {[%clk 0:02:57]}  a5 {[%clk 0:02:55]} 8. d3 {[%clk 0:02:54]}  Nbd7 {[%clk 0:02:54]} 9. h3 {[%clk 0:02:53]}  Nc5 {[%clk 0:02:47]} 10. Be3 {[%clk 0:02:52]}  Nfd7 {[%clk 0:02:31]} 11. Qd2 {[%clk 0:02:51]}  Ne6 {[%clk 0:02:25]} 12. f4 {[%clk 0:02:49]}  exf4 {[%clk 0:02:23]} 13. gxf4 {[%clk 0:02:49]}  f5 {[%clk 0:02:23]} 14. exf5 {[%clk 0:02:46]}  Rxf5 {[%clk 0:02:24]} 15. Ng3 {[%clk 0:02:41]}  Rf8 {[%clk 0:02:13]} 16. f5 {[%clk 0:02:40]}  gxf5 {[%clk 0:02:01]} 17. Nxf5 {[%clk 0:02:40]}  Ne5 {[%clk 0:01:59]} 18. Be4 {[%clk 0:02:22]}  Qe8 {[%clk 0:01:32]} 19. Nd5 {[%clk 0:02:14]}  Bd7 {[%clk 0:01:12]} 20. Kh2 {[%clk 0:02:00]}  Qh5 {[%clk 0:01:02]} 21. Qg2 {[%clk 0:01:56]}  Kh8 {[%clk 0:00:56]} 22. Nxg7 {[%clk 0:01:51]}  Nxg7 {[%clk 0:00:49]} 23. Bd4 {[%clk 0:01:39]}  Ne6 {[%clk 0:00:30]} 24. Bc3 {[%clk 0:01:36]}  Rg8 {[%clk 0:00:26]} 25. Rg1 {[%clk 0:01:05]}  Rxg2+ {[%clk 0:00:25]} 26. Rxg2 {[%clk 0:01:06]}  Ng5 {[%clk 0:00:19]} 27. Nf4 {[%clk 0:00:58]}  Qh6 {[%clk 0:00:14]} 28. Rag1 {[%clk 0:00:51]}  Nxh3 {[%clk 0:00:04]} 29. Ng6+ {[%clk 0:00:17]}  hxg6 {[%clk 0:00:03]} 30. Rxg6 {[%clk 0:00:17]}  Qf4+ {[%clk 0:00:03]} 31. Kh1 {[%clk 0:00:16]}  Nf2+ {[%clk 0:00:03]} 32. Kg2 {[%clk 0:00:16]}  Bh3# {[%clk 0:00:02]} 0-1

[Event "December 5 Early 2023"]
[Site "https://www.chess.com"]
[Date "2023.12.05"]
[Round "11"]
[White "Barbot, Pierre"]
[Black "Ernst, Luca"]
[Result "0-1"]
[Board "123"]
[TimeControl "180+1"]
[WhiteFideId "663727"]
[BlackFideId "45117055"]
[WhiteElo "2313"]
[BlackElo "2260"]
[WhiteTeam "FRA"]
[BlackTeam "FRA"]
[WhiteClock "0:00:02"]
[BlackClock "0:00:02"]

1. e4 {[%clk 0:02:54]}  c5 {[%clk 0:02:58]} 2. Nc3 {[%clk 0:02:52]}  Nc6 {[%clk 0:02:55]} 3. Bb5 {[%clk 0:02:52]}  Nd4 {[%clk 0:02:55]} 4. Nf3 {[%clk 0:02:50]}  a6 {[%clk 0:02:54]} 5. Bd3 {[%clk 0:02:44]}  e6 {[%clk 0:02:52]} 6. O-O {[%clk 0:02:41]}  Nxf3+ {[%clk 0:02:48]} 7. Qxf3 {[%clk 0:02:41]}  Bd6 {[%clk 0:02:49]} 8. a4 {[%clk 0:02:16]}  Qc7 {[%clk 0:02:47]} 9. h3 {[%clk 0:02:16]}  Ne7 {[%clk 0:02:45]} 10. Bc4 {[%clk 0:02:13]}  Ng6 {[%clk 0:02:38]} 11. Qh5 {[%clk 0:02:02]}  Nf4 {[%clk 0:02:22]} 12. Qf3 {[%clk 0:01:59]}  Ng6 {[%clk 0:02:15]} 13. Ba2 {[%clk 0:01:54]}  Be5 {[%clk 0:02:08]} 14. d3 {[%clk 0:01:53]}  b6 {[%clk 0:02:05]} 15. Be3 {[%clk 0:01:46]}  Bb7 {[%clk 0:02:03]} 16. Rfd1 {[%clk 0:01:44]}  O-O {[%clk 0:02:00]} 17. d4 {[%clk 0:01:40]}  cxd4 {[%clk 0:01:55]} 18. Bxd4 {[%clk 0:01:41]}  f5 {[%clk 0:01:47]} 19. Bxe5 {[%clk 0:01:24]}  Nxe5 {[%clk 0:01:40]} 20. Qe3 {[%clk 0:01:22]}  f4 {[%clk 0:01:12]} 21. Qd4 {[%clk 0:01:16]}  f3 {[%clk 0:01:11]} 22. g3 {[%clk 0:01:16]}  Bc6 {[%clk 0:01:11]} 23. b4 {[%clk 0:01:07]}  Rac8 {[%clk 0:00:34]} 24. Rab1 {[%clk 0:00:34]}  Bb7 {[%clk 0:00:17]} 25. Rb3 {[%clk 0:00:31]}  Nc4 {[%clk 0:00:10]} 26. Qxd7 {[%clk 0:00:13]}  Qxd7 {[%clk 0:00:10]} 27. Rxd7 {[%clk 0:00:13]}  Bc6 {[%clk 0:00:11]} 28. Ra7 {[%clk 0:00:13]}  Nd2 {[%clk 0:00:10]} 29. Rb2 {[%clk 0:00:12]}  Be8 {[%clk 0:00:03]} 30. Nd1 {[%clk 0:00:09]}  Bf7 {[%clk 0:00:02]} 31. Ne3 {[%clk 0:00:09]}  Nxe4 {[%clk 0:00:02]} 32. Rxa6 {[%clk 0:00:09]}  Rfd8 {[%clk 0:00:02]} 33. Rxb6 {[%clk 0:00:08]}  Rd2 {[%clk 0:00:02]} 34. Bb3 {[%clk 0:00:07]}  Rxf2 {[%clk 0:00:02]} 35. Rb1 {[%clk 0:00:04]}  Re2 {[%clk 0:00:02]} 36. Ng4 {[%clk 0:00:04]}  Nxg3 {[%clk 0:00:01]} 37. Bc4 {[%clk 0:00:02]}  Rg2# {[%clk 0:00:02]} 0-1

[Event "December 5 Early 2023"]
[Site "https://www.chess.com"]
[Date "2023.12.05"]
[Round "11"]
[White "NastyaHn"]
[Black "Cardozo Munar, Carlos Eduardo"]
[Result "1-0"]
[Board "125"]
[TimeControl "180+1"]
[BlackFideId "4409477"]
[WhiteElo "2222"]
[BlackElo "2275"]
[BlackTeam "COL"]
[WhiteClock "0:01:23"]
[BlackClock "0:01:20"]

1. Nc3 {[%clk 0:02:59]}  Nf6 {[%clk 0:02:59]} 2. Nf3 {[%clk 0:02:54]}  g6 {[%clk 0:02:59]} 3. e4 {[%clk 0:02:53]}  Bg7 {[%clk 0:03:00]} 4. e5 {[%clk 0:02:53]}  Ng8 {[%clk 0:03:00]} 5. d4 {[%clk 0:02:54]}  d6 {[%clk 0:03:00]} 6. Bc4 {[%clk 0:02:48]}  dxe5 {[%clk 0:02:54]} 7. Nxe5 {[%clk 0:02:38]}  e6 {[%clk 0:02:48]} 8. Be3 {[%clk 0:02:33]}  Ne7 {[%clk 0:02:48]} 9. h4 {[%clk 0:02:30]}  b6 {[%clk 0:02:47]} 10. h5 {[%clk 0:02:29]}  Bb7 {[%clk 0:02:46]} 11. hxg6 {[%clk 0:02:29]}  hxg6 {[%clk 0:02:46]} 12. Rxh8+ {[%clk 0:02:29]}  Bxh8 {[%clk 0:02:47]} 13. Qg4 {[%clk 0:02:24]}  Nd7 {[%clk 0:02:44]} 14. Nxf7 {[%clk 0:02:11]}  Qc8 {[%clk 0:01:51]} 15. Nxh8 {[%clk 0:02:08]}  Nf6 {[%clk 0:01:46]} 16. Qh4 {[%clk 0:01:52]}  Neg8 {[%clk 0:01:39]} 17. Nxg6 {[%clk 0:01:49]}  Bxg2 {[%clk 0:01:39]} 18. Nf4 {[%clk 0:01:47]}  Bd5 {[%clk 0:01:38]} 19. Bxd5 {[%clk 0:01:46]}  exd5 {[%clk 0:01:38]} 20. Ncxd5 {[%clk 0:01:42]}  Nxd5 {[%clk 0:01:33]} 21. Nxd5 {[%clk 0:01:42]}  Qd7 {[%clk 0:01:33]} 22. Qe4+ {[%clk 0:01:38]}  Kf7 {[%clk 0:01:26]} 23. Qh7+ {[%clk 0:01:23]}  Ke8 {[%clk 0:01:20]} 24. Nxc7+ {[%clk 0:01:23]} 1-0

[Event "December 5 Early 2023"]
[Site "https://www.chess.com"]
[Date "2023.12.05"]
[Round "11"]
[White "Yushko, Olga"]
[Black "Colonetti, Fabio"]
[Result "0-1"]
[Board "126"]
[TimeControl "180+1"]
[WhiteFideId "14114500"]
[BlackFideId "897612"]
[WhiteElo "2131"]
[BlackElo "2275"]
[WhiteTeam "UKR"]
[BlackTeam "ITA"]
[WhiteClock "0:00:20"]
[BlackClock "0:00:36"]

1. d4 {[%clk 0:02:59]}  Nf6 {[%clk 0:02:58]} 2. c4 {[%clk 0:03:00]}  e6 {[%clk 0:02:58]} 3. Nc3 {[%clk 0:03:00]}  Bb4 {[%clk 0:02:59]} 4. Qc2 {[%clk 0:03:01]}  d5 {[%clk 0:02:56]} 5. cxd5 {[%clk 0:03:00]}  exd5 {[%clk 0:02:55]} 6. Nf3 {[%clk 0:03:00]}  O-O {[%clk 0:02:54]} 7. Bg5 {[%clk 0:02:59]}  h6 {[%clk 0:02:54]} 8. Bh4 {[%clk 0:02:59]}  g5 {[%clk 0:02:54]} 9. Bg3 {[%clk 0:02:59]}  Ne4 {[%clk 0:02:55]} 10. e3 {[%clk 0:02:57]}  h5 {[%clk 0:02:47]} 11. h4 {[%clk 0:02:53]}  Nxg3 {[%clk 0:02:41]} 12. fxg3 {[%clk 0:02:53]}  g4 {[%clk 0:02:41]} 13. Ne5 {[%clk 0:02:48]}  Qf6 {[%clk 0:02:33]} 14. Bd3 {[%clk 0:02:40]}  Nd7 {[%clk 0:02:28]} 15. Rf1 {[%clk 0:02:39]}  Qh6 {[%clk 0:02:17]} 16. Rf4 {[%clk 0:02:17]}  Nxe5 {[%clk 0:02:02]} 17. dxe5 {[%clk 0:02:18]}  c5 {[%clk 0:02:01]} 18. Kf2 {[%clk 0:02:12]}  f6 {[%clk 0:01:57]} 19. exf6 {[%clk 0:02:05]}  Be6 {[%clk 0:01:44]} 20. Kg1 {[%clk 0:02:00]}  Rxf6 {[%clk 0:01:43]} 21. Raf1 {[%clk 0:01:52]}  Raf8 {[%clk 0:01:42]} 22. Ne2 {[%clk 0:01:41]}  c4 {[%clk 0:01:37]} 23. Bh7+ {[%clk 0:01:33]}  Kg7 {[%clk 0:01:34]} 24. Nd4 {[%clk 0:01:23]}  Rxf4 {[%clk 0:01:21]} 25. exf4 {[%clk 0:01:10]}  Bc5 {[%clk 0:01:19]} 26. Kh2 {[%clk 0:01:04]}  Bxd4 {[%clk 0:01:16]} 27. f5 {[%clk 0:00:59]}  Bd7 {[%clk 0:01:08]} 28. Bg6 {[%clk 0:00:56]}  Qe3 {[%clk 0:00:57]} 29. Bxh5 {[%clk 0:00:38]}  Bxf5 {[%clk 0:00:55]} 30. Qd1 {[%clk 0:00:38]}  Be5 {[%clk 0:00:43]} 31. Qxd5 {[%clk 0:00:22]}  Qxg3+ {[%clk 0:00:35]} 32. Kg1 {[%clk 0:00:22]}  Qh2+ {[%clk 0:00:35]} 33. Kf2 {[%clk 0:00:20]}  Be4+ {[%clk 0:00:36]} 0-1

[Event "December 5 Early 2023"]
[Site "https://www.chess.com"]
[Date "2023.12.05"]
[Round "11"]
[White "Kononenko, Dmitry"]
[Black "Vanek, Tomas"]
[Result "1-0"]
[Board "127"]
[TimeControl "180+1"]
[WhiteFideId "14113538"]
[BlackFideId "313459"]
[WhiteElo "2559"]
[BlackElo "2156"]
[WhiteTeam "UKR"]
[BlackTeam "CZE"]
[WhiteClock "0:00:49"]
[BlackClock "0:00:04"]

1. e4 {[%clk 0:03:00]}  c5 {[%clk 0:02:59]} 2. b4 {[%clk 0:02:55]}  cxb4 {[%clk 0:02:53]} 3. a3 {[%clk 0:02:54]}  b3 {[%clk 0:02:44]} 4. cxb3 {[%clk 0:02:53]}  Nc6 {[%clk 0:02:41]} 5. Bb2 {[%clk 0:02:48]}  d6 {[%clk 0:02:36]} 6. Nf3 {[%clk 0:02:44]}  Nf6 {[%clk 0:02:35]} 7. Nc3 {[%clk 0:02:39]}  Bg4 {[%clk 0:02:34]} 8. Be2 {[%clk 0:02:35]}  Rc8 {[%clk 0:02:25]} 9. O-O {[%clk 0:02:34]}  Bxf3 {[%clk 0:02:18]} 10. Bxf3 {[%clk 0:02:31]}  Nd4 {[%clk 0:02:18]} 11. Nd5 {[%clk 0:02:30]}  Nxf3+ {[%clk 0:02:05]} 12. Qxf3 {[%clk 0:02:24]}  Nxd5 {[%clk 0:02:03]} 13. exd5 {[%clk 0:02:22]}  Qd7 {[%clk 0:02:01]} 14. Rfe1 {[%clk 0:02:16]}  h5 {[%clk 0:01:52]} 15. Rac1 {[%clk 0:02:09]}  Rh6 {[%clk 0:01:45]} 16. Rxc8+ {[%clk 0:02:01]}  Qxc8 {[%clk 0:01:44]} 17. Qe3 {[%clk 0:02:01]}  Rg6 {[%clk 0:01:21]} 18. Qxa7 {[%clk 0:01:41]}  Rg5 {[%clk 0:01:07]} 19. Rc1 {[%clk 0:01:34]}  Rxg2+ {[%clk 0:00:28]} 20. Kxg2 {[%clk 0:01:29]}  Qg4+ {[%clk 0:00:29]} 21. Kf1 {[%clk 0:01:28]}  Qh3+ {[%clk 0:00:29]} 22. Ke1 {[%clk 0:01:28]}  f5 {[%clk 0:00:26]} 23. Qa4+ {[%clk 0:01:21]}  Kf7 {[%clk 0:00:26]} 24. Qf4 {[%clk 0:01:21]}  g6 {[%clk 0:00:20]} 25. Rc3 {[%clk 0:01:18]}  Qg2 {[%clk 0:00:19]} 26. Rg3 {[%clk 0:01:10]}  Qxd5 {[%clk 0:00:18]} 27. Qc4 {[%clk 0:01:07]}  e6 {[%clk 0:00:16]} 28. Qxd5 {[%clk 0:01:07]}  exd5 {[%clk 0:00:17]} 29. Rc3 {[%clk 0:01:05]}  Ke6 {[%clk 0:00:16]} 30. Rc7 {[%clk 0:01:01]}  f4 {[%clk 0:00:14]} 31. Rxb7 {[%clk 0:01:01]}  Bh6 {[%clk 0:00:12]} 32. h4 {[%clk 0:00:56]}  f3 {[%clk 0:00:12]} 33. a4 {[%clk 0:00:54]}  Kf5 {[%clk 0:00:12]} 34. a5 {[%clk 0:00:54]}  Kg4 {[%clk 0:00:11]} 35. Bf6 {[%clk 0:00:54]}  d4 {[%clk 0:00:07]} 36. a6 {[%clk 0:00:53]}  Kh3 {[%clk 0:00:07]} 37. a7 {[%clk 0:00:52]}  Kg2 {[%clk 0:00:07]} 38. a8=Q {[%clk 0:00:49]}  Bxd2+ {[%clk 0:00:04]} 39. Kxd2 {[%clk 0:00:49]} 1-0

[Event "December 5 Early 2023"]
[Site "https://www.chess.com"]
[Date "2023.12.05"]
[Round "11"]
[White "Dyulgerov, Volen"]
[Black "Lopusiewicz, Piotr"]
[Result "0-1"]
[Board "128"]
[TimeControl "180+1"]
[WhiteFideId "2918978"]
[BlackFideId "1116029"]
[WhiteElo "2249"]
[BlackElo "2403"]
[WhiteTeam "BUL"]
[BlackTeam "POL"]
[WhiteClock "0:00:14"]
[BlackClock "0:01:54"]

1. e4 {[%clk 0:02:54]}  e5 {[%clk 0:02:59]} 2. d4 {[%clk 0:02:52]}  exd4 {[%clk 0:02:59]} 3. c3 {[%clk 0:02:53]}  d5 {[%clk 0:02:58]} 4. e5 {[%clk 0:02:52]}  c5 {[%clk 0:02:48]} 5. Nf3 {[%clk 0:02:52]}  Nc6 {[%clk 0:02:45]} 6. cxd4 {[%clk 0:02:50]}  Bg4 {[%clk 0:02:43]} 7. Nc3 {[%clk 0:02:33]}  cxd4 {[%clk 0:02:38]} 8. Nb5 {[%clk 0:02:13]}  Bb4+ {[%clk 0:02:34]} 9. Bd2 {[%clk 0:02:11]}  Bxd2+ {[%clk 0:02:18]} 10. Qxd2 {[%clk 0:02:10]}  Bxf3 {[%clk 0:02:18]} 11. Nd6+ {[%clk 0:02:08]}  Kf8 {[%clk 0:02:17]} 12. gxf3 {[%clk 0:01:18]}  Nxe5 {[%clk 0:02:15]} 13. Qb4 {[%clk 0:01:09]}  Qe7 {[%clk 0:02:05]} 14. O-O-O {[%clk 0:00:55]}  Rd8 {[%clk 0:02:05]} 15. Re1 {[%clk 0:00:30]}  Rxd6 {[%clk 0:02:04]} 16. Kb1 {[%clk 0:00:22]}  Re6 {[%clk 0:01:59]} 17. Qxd4 {[%clk 0:00:20]}  Nc6 {[%clk 0:01:57]} 18. Rxe6 {[%clk 0:00:17]}  Nxd4 {[%clk 0:01:54]} 19. Rxe7 {[%clk 0:00:14]}  Nxe7 {[%clk 0:01:54]} 0-1

[Event "December 5 Early 2023"]
[Site "https://www.chess.com"]
[Date "2023.12.05"]
[Round "11"]
[White "Zampronha, Wladimir Camilo"]
[Black "Borawski, Jakub"]
[Result "1-0"]
[Board "129"]
[TimeControl "180+1"]
[WhiteFideId "2103087"]
[BlackFideId "1143000"]
[WhiteElo "2359"]
[BlackElo "2237"]
[WhiteTeam "BRA"]
[BlackTeam "POL"]
[WhiteClock "0:00:20"]
[BlackClock "0:00:00"]

1. e4 {[%clk 0:03:00]}  e5 {[%clk 0:03:00]} 2. Nf3 {[%clk 0:03:00]}  Nc6 {[%clk 0:03:00]} 3. d4 {[%clk 0:03:01]}  exd4 {[%clk 0:03:00]} 4. Nxd4 {[%clk 0:03:02]}  Bc5 {[%clk 0:02:58]} 5. Be3 {[%clk 0:03:02]}  Qf6 {[%clk 0:02:58]} 6. c3 {[%clk 0:03:02]}  Nge7 {[%clk 0:02:57]} 7. Bc4 {[%clk 0:03:02]}  b6 {[%clk 0:02:57]} 8. O-O {[%clk 0:03:01]}  Bb7 {[%clk 0:02:57]} 9. f4 {[%clk 0:02:47]}  O-O-O {[%clk 0:02:50]} 10. e5 {[%clk 0:02:47]}  Qh6 {[%clk 0:02:45]} 11. Qd2 {[%clk 0:02:44]}  Bxd4 {[%clk 0:02:30]} 12. cxd4 {[%clk 0:02:43]}  Nf5 {[%clk 0:02:31]} 13. Bxf7 {[%clk 0:02:24]}  Nce7 {[%clk 0:02:04]} 14. Nc3 {[%clk 0:02:14]}  Nxe3 {[%clk 0:01:59]} 15. Qxe3 {[%clk 0:02:13]}  Rhf8 {[%clk 0:01:55]} 16. Bb3 {[%clk 0:01:46]}  Nf5 {[%clk 0:01:53]} 17. Qd2 {[%clk 0:01:38]}  Qg6 {[%clk 0:01:40]} 18. d5 {[%clk 0:01:27]}  Nh4 {[%clk 0:01:29]} 19. Kh1 {[%clk 0:01:24]}  Rde8 {[%clk 0:01:26]} 20. Rae1 {[%clk 0:01:21]}  Nf5 {[%clk 0:01:24]} 21. Bc2 {[%clk 0:01:17]}  Qh5 {[%clk 0:01:24]} 22. Bxf5 {[%clk 0:01:14]}  Rxf5 {[%clk 0:01:22]} 23. Qf2 {[%clk 0:01:02]}  Ref8 {[%clk 0:01:20]} 24. Qg3 {[%clk 0:01:01]}  Qh6 {[%clk 0:01:19]} 25. e6 {[%clk 0:00:57]}  dxe6 {[%clk 0:01:17]} 26. dxe6 {[%clk 0:00:57]}  Qf6 {[%clk 0:01:16]} 27. h3 {[%clk 0:00:38]}  Re8 {[%clk 0:01:09]} 28. Re3 {[%clk 0:00:32]}  Rxe6 {[%clk 0:01:07]} 29. Rxe6 {[%clk 0:00:33]}  Qxe6 {[%clk 0:01:08]} 30. Qxg7 {[%clk 0:00:33]}  Kb8 {[%clk 0:00:49]} 31. Qh8+ {[%clk 0:00:30]}  Bc8 {[%clk 0:00:45]} 32. Qxh7 {[%clk 0:00:30]}  a6 {[%clk 0:00:45]} 33. Qh4 {[%clk 0:00:29]}  Qc4 {[%clk 0:00:39]} 34. Qf2 {[%clk 0:00:29]}  Bb7 {[%clk 0:00:37]} 35. Kh2 {[%clk 0:00:28]}  Rf8 {[%clk 0:00:35]} 36. Nd1 {[%clk 0:00:28]}  Qxa2 {[%clk 0:00:34]} 37. Ne3 {[%clk 0:00:27]}  Rg8 {[%clk 0:00:32]} 38. Ng4 {[%clk 0:00:27]}  a5 {[%clk 0:00:31]} 39. f5 {[%clk 0:00:27]}  a4 {[%clk 0:00:27]} 40. f6 {[%clk 0:00:27]}  Rf8 {[%clk 0:00:27]} 41. Ne5 {[%clk 0:00:21]}  Qe6 {[%clk 0:00:25]} 42. Qf4 {[%clk 0:00:20]}  Qd5 {[%clk 0:00:23]} 43. Rf2 {[%clk 0:00:20]}  b5 {[%clk 0:00:22]} 44. f7 {[%clk 0:00:20]}  Qe6 {[%clk 0:00:20]} 45. h4 {[%clk 0:00:19]}  Ka8 {[%clk 0:00:16]} 46. h5 {[%clk 0:00:19]}  c5 {[%clk 0:00:00]} 47. Ng6 {[%clk 0:00:20]} 1-0

[Event "December 5 Early 2023"]
[Site "https://www.chess.com"]
[Date "2023.12.05"]
[Round "11"]
[White "Spichkin, Alexander"]
[Black "Rodriguez Avila, Alvaro"]
[Result "1-0"]
[Board "130"]
[TimeControl "180+1"]
[WhiteFideId "4144074"]
[BlackFideId "24570249"]
[WhiteElo "2340"]
[BlackElo "2233"]
[WhiteTeam "RUS"]
[BlackTeam "ESP"]
[WhiteClock "0:02:13"]
[BlackClock "0:01:06"]

1. f4 {[%clk 0:02:34]}  Nh6 {[%clk 0:02:57]} 2. Nf3 {[%clk 0:02:34]}  d5 {[%clk 0:02:58]} 3. b3 {[%clk 0:02:33]}  c5 {[%clk 0:02:58]} 4. Bb2 {[%clk 0:02:34]}  Nc6 {[%clk 0:02:58]} 5. e3 {[%clk 0:02:34]}  a6 {[%clk 0:02:58]} 6. Bb5 {[%clk 0:02:35]}  axb5 {[%clk 0:02:58]} 7. O-O {[%clk 0:02:35]}  Bg4 {[%clk 0:02:55]} 8. Qe1 {[%clk 0:02:34]}  e6 {[%clk 0:02:48]} 9. Ne5 {[%clk 0:02:35]}  Nxe5 {[%clk 0:02:44]} 10. Bxe5 {[%clk 0:02:30]}  Bf5 {[%clk 0:02:43]} 11. d3 {[%clk 0:02:30]}  Ng4 {[%clk 0:02:34]} 12. Bb2 {[%clk 0:02:29]}  Nf6 {[%clk 0:02:34]} 13. Nd2 {[%clk 0:02:28]}  Bg6 {[%clk 0:02:32]} 14. e4 {[%clk 0:02:27]}  Be7 {[%clk 0:01:47]} 15. f5 {[%clk 0:02:20]}  exf5 {[%clk 0:01:46]} 16. exf5 {[%clk 0:02:18]}  Bh5 {[%clk 0:01:47]} 17. Bxf6 {[%clk 0:02:18]}  gxf6 {[%clk 0:01:45]} 18. Qh4 {[%clk 0:02:16]}  Bg6 {[%clk 0:01:27]} 19. fxg6 {[%clk 0:02:15]}  hxg6 {[%clk 0:01:06]} 20. Qxh8+ {[%clk 0:02:13]} 1-0

[Event "December 5 Early 2023"]
[Site "https://www.chess.com"]
[Date "2023.12.05"]
[Round "11"]
[White "Chemin, Justo Reinaldo"]
[Black "Buscar, Michael"]
[Result "0-1"]
[Board "131"]
[TimeControl "180+1"]
[WhiteFideId "2101580"]
[BlackFideId "2603616"]
[WhiteElo "2222"]
[BlackElo "2339"]
[WhiteTeam "BRA"]
[BlackTeam "CAN"]
[WhiteClock "0:00:00"]
[BlackClock "0:00:27"]

1. d4 {[%clk 0:03:00]}  d5 {[%clk 0:02:58]} 2. Nf3 {[%clk 0:03:00]}  e6 {[%clk 0:02:59]} 3. Bf4 {[%clk 0:03:00]}  c5 {[%clk 0:02:59]} 4. e3 {[%clk 0:03:01]}  cxd4 {[%clk 0:02:59]} 5. exd4 {[%clk 0:03:01]}  Nc6 {[%clk 0:02:58]} 6. c3 {[%clk 0:03:01]}  Nf6 {[%clk 0:02:57]} 7. Nbd2 {[%clk 0:03:01]}  Bd6 {[%clk 0:02:57]} 8. Bg3 {[%clk 0:03:00]}  O-O {[%clk 0:02:55]} 9. Bd3 {[%clk 0:03:00]}  Ne7 {[%clk 0:02:52]} 10. Qe2 {[%clk 0:02:57]}  Ng6 {[%clk 0:02:51]} 11. Ne5 {[%clk 0:02:55]}  Qc7 {[%clk 0:02:41]} 12. h4 {[%clk 0:02:40]}  Ne7 {[%clk 0:01:53]} 13. h5 {[%clk 0:02:31]}  Nd7 {[%clk 0:01:50]} 14. h6 {[%clk 0:02:12]}  g6 {[%clk 0:01:47]} 15. f4 {[%clk 0:01:47]}  f6 {[%clk 0:01:41]} 16. Nxg6 {[%clk 0:00:53]}  Nxg6 {[%clk 0:01:35]} 17. Qxe6+ {[%clk 0:00:51]}  Rf7 {[%clk 0:01:35]} 18. Bxg6 {[%clk 0:00:36]}  Nf8 {[%clk 0:01:26]} 19. Bxf7+ {[%clk 0:00:33]}  Qxf7 {[%clk 0:01:09]} 20. Qxd6 {[%clk 0:00:33]}  Bg4 {[%clk 0:01:07]} 21. Kf2 {[%clk 0:00:32]}  Ng6 {[%clk 0:01:00]} 22. f5 {[%clk 0:00:31]}  Ne7 {[%clk 0:00:57]} 23. Qf4 {[%clk 0:00:28]}  Bxf5 {[%clk 0:00:57]} 24. Nf3 {[%clk 0:00:26]}  Rf8 {[%clk 0:00:53]} 25. Rhe1 {[%clk 0:00:23]}  Be4 {[%clk 0:00:52]} 26. Rxe4 {[%clk 0:00:20]}  dxe4 {[%clk 0:00:51]} 27. Qxe4 {[%clk 0:00:20]}  Nd5 {[%clk 0:00:47]} 28. Re1 {[%clk 0:00:19]}  Qh5 {[%clk 0:00:43]} 29. Qe6+ {[%clk 0:00:18]}  Kh8 {[%clk 0:00:44]} 30. Rh1 {[%clk 0:00:17]}  Qxh1 {[%clk 0:00:38]} 31. Qxd5 {[%clk 0:00:16]}  Qb1 {[%clk 0:00:33]} 32. Qb3 {[%clk 0:00:15]}  Qg6 {[%clk 0:00:32]} 33. d5 {[%clk 0:00:13]}  Rg8 {[%clk 0:00:32]} 34. c4 {[%clk 0:00:06]}  Qxg3+ {[%clk 0:00:32]} 35. Ke3 {[%clk 0:00:07]}  Re8+ {[%clk 0:00:29]} 36. Kd4 {[%clk 0:00:06]}  Qf2+ {[%clk 0:00:27]} 37. Kc3 {[%clk 0:00:02]}  Re3+ {[%clk 0:00:27]} 38. Kb4 {[%clk 0:00:03]}  Rxb3+ {[%clk 0:00:28]} 39. axb3 {[%clk 0:00:04]}  Qxg2 {[%clk 0:00:27]} 40. Nd4 {[%clk 0:00:03]}  Qd2+ {[%clk 0:00:26]} 41. Kc5 {[%clk 0:00:03]}  b6+ {[%clk 0:00:26]} 42. Kd6 {[%clk 0:00:00]}  Qxd4 {[%clk 0:00:27]} 0-1